[Event "Caplin Hastings Masters 2023-24"]
[Site "Hastings"]
[Date "2024.01.04"]
[Round "8.26"]
[White "White, Stuart A"]
[Black "Vasiliadis, Theodoros"]
[Result "0-1"]
[ECO "E71"]
[WhiteElo "2014"]
[BlackElo "1845"]
[Annotator "RC"]
[PlyCount "116"]
[EventDate "2023.12.18"]
[EventType "swiss"]
[EventCountry "ENG"]
[SourceTitle "playchess.com"]
[Source "ChessBase"]
[SourceQuality "1"]
[TimeControl "40/6000+30:3000+30"]

1. d4 {[%emt 0:00:01]} Nf6 {[%emt 0:00:05]} 2. c4 {[%emt 0:00:03]} g6 {[%emt 0:00:04]} 3. Nc3 {[%emt 0:00:04]} Bg7 {[%emt 0:00:03]} 4. e4 {[%emt 0:00:05]} d6 {[%emt 0:00:04]} 5. h3 {[%emt 0:00:09]} O-O {[%emt 0:00:15]} 6. Be3 {[%emt 0:00:11]} Nc6 {[%emt 0:00:37]} 7. d5 {[%emt 0:00:27]} Ne5 {[%emt 0:00:05]} 8. Be2 {[%emt 0:06:10]} e6 {[%emt 0:00:35]} 9. Nf3 {[%emt 0:06:16]} Nxf3+ {[%emt 0:12:57]} 10. Bxf3 {[%emt 0:00:09]} exd5 {[%emt 0:10:27]} 11. exd5 {[%emt 0:00:37]} Re8 {[%emt 0:17:44]} 12. O-O {[%emt 0:01:23]} Rxe3 {[%emt 0:08:11]} 13. fxe3 {[%emt 0:00:24]} Nd7 {[%emt 0:00:48]} 14. Qc2 {[%emt 0:09:42]} Ne5 {[%emt 0:05:23]} 15. Ne2 {[%emt 0:13:44]} Qe7 {[%emt 0:06:21]} 16. Rae1 {[%emt 0:03:13]} Bf6 {[%emt 0:08:21]} 17. Nf4 {[%emt 0:07:04]} Bh4 {[%emt 0:03:04]} 18. Re2 {[%emt 0:03:13]} Bg3 {[%emt 0:02:40]} 19. Nd3 {[%emt 0:36:32]} Ng4 {[%emt 0:03:25]} 20. e4 {[%emt 0:03:11]} Nh2 {[%emt 0:04:44]} 21. Rff2 {[%emt 0:05:20]} Bxf2+ {[%emt 0:09:30]} 22. Kxf2 {[%emt 0:01:19]} Qh4+ {[%emt 0:02:27]} 23. Ke3 {[%emt 0:01:15]} Nf1+ {[%emt 0:01:57]} 24. Kd4 {[%emt 0:00:05]} Ng3 {[%emt 0:00:53]} 25. Re1 {[%emt 0:02:12]} Bd7 {[%emt 0:08:22]} 26. Qf2 {[%emt 0:01:47]} Nf5+ {[%emt 0:00:49]} 27. Kc3 {[%emt 0:00:00]} Qf6+ {[%emt 0:01:26]} 28. Kd2 {[%emt 0:01:06]} Nh4 {[%emt 0:01:08]} 29. Qg3 {[%emt 0:03:52]} Nxf3+ {[%emt 0:00:44]} 30. gxf3 {[%emt 0:00:07]} Qd4 {[%emt 0:00:44]} 31. b3 {[%emt 0:00:05]} Re8 {[%emt 0:00:41]} 32. Qf2 {[%emt 0:00:43]} Qf6 {[%emt 0:00:44]} 33. h4 {[%emt 0:00:55]} b5 {[%emt 0:00:41]} 34. Rh1 {[%emt 0:01:54]} bxc4 {[%emt 0:00:38]} 35. bxc4 {[%emt 0:00:03]} a5 {[%emt 0:00:42]} 36. h5 {[%emt 0:00:41]} Bc8 {[%emt 0:00:28]} 37. hxg6 {[%emt 0:01:09]} fxg6 {[%emt 0:00:22]} 38. Qh4 {[%emt 0:01:51]} Qg7 {[%emt 0:00:42]} 39. Ke3 {[%emt 0:00:56]} Ba6 {[%emt 0:00:29]} 40. Rc1 {[%emt 0:00:19]} Rb8 {[%emt 0:00:33]} 41. Qe1 {[%emt 0:10:30]} Qh6+ {[%emt 0:18:13]} 42. Ke2 {[%emt 0:00:18]} a4 {[%emt 0:04:41]} 43. Qc3 {[%emt 0:03:29]} Bc8 {[%emt 0:07:11]} 44. Qf6 {[%emt 0:06:34]} Bd7 {[%emt 0:07:28]} 45. Qc3 {[%emt 0:08:15]} Qg5 {[%emt 0:01:40]} 46. Nf2 {[%emt 0:01:19]} h5 {[%emt 0:01:18]} 47. Rf1 {[%emt 0:10:33]} h4 {[%emt 0:00:38]} 48. Qa1 {[%emt 0:00:23]} a3 {[%emt 0:02:54]} 49. Nd3 {[%emt 0:00:08]} Bh3 {[%emt 0:01:36]} 50. Rg1 {[%emt 0:04:32]} Bg2 {[%emt 0:00:18]} 51. Qc1 {[%emt 0:00:24]} Qg3 {[%emt 0:03:35]} 52. Ne1 {[%emt 0:02:55]} Rb2+ {[%emt 0:01:21]} 53. Kd3 {[%emt 0:00:37]} h3 {[%emt 0:02:36]} 54. Qh6 {[%emt 0:03:24]} h2 {[%emt 0:00:40]} 55. Rxg2 {[%emt 0:00:59]} Rxg2 {[%emt 0:00:23]} 56. Nxg2 {[%emt 0:00:07]} Qxg2 {[%emt 0:00:11]} 57. Qh4 {[%emt 0:00:35]} Qxf3+ {[%emt 0:00:31]} 58. Kd2 {[%emt 0:00:33]} h1=Q {[%emt 0:00:14]} 0-1

[Event "Caplin Hastings Masters 2023-24"]
[Site "Hastings"]
[Date "2024.01.04"]
[Round "8.27"]
[White "Kovalskyi, Roman"]
[Black "Sivanandan, Bodhana"]
[Result "1-0"]
[ECO "B11"]
[WhiteElo "2009"]
[BlackElo "1857"]
[Annotator "NA RC"]
[PlyCount "81"]
[EventDate "2023.12.18"]
[EventType "swiss"]
[EventCountry "ENG"]
[SourceTitle "playchess.com"]
[Source "ChessBase"]
[SourceQuality "1"]
[TimeControl "40/6000+30:3000+30"]

1. e4 {[%emt 0:07:51]} c6 {[%emt 0:00:10]} 2. Nc3 {[%emt 0:00:20]} d5 {[%emt 0:00:20]} 3. Nf3 {[%emt 0:00:23]} dxe4 {[%emt 0:00:25]} 4. Nxe4 {[%emt 0:00:08]} Nf6 {[%emt 0:00:17]} 5. Qe2 {[%emt 0:00:12]} Nxe4 {[%emt 0:00:36]} 6. Qxe4 {[%emt 0:00:06]} Nd7 {[%emt 0:00:41]} 7. Bc4 {[%emt 0:00:33]} Nf6 {[%emt 0:00:29]} 8. Ne5 {[%emt 0:01:28]} e6 {[%emt 0:00:22]} 9. Qe2 {[%emt 0:00:04]} b5 {[%emt 0:01:02]} 10. Bb3 {[%emt 0:04:31]} Qc7 {[%emt 0:02:44]} 11. O-O {[%emt 0:04:36]} Bd6 {[%emt 0:04:07]} 12. f4 {[%emt 0:00:57]} O-O {[%emt 0:04:44]} 13. d3 {[%emt 0:02:37]} c5 {[%emt 0:03:34]} 14. c4 {[%emt 0:03:58]} a6 {[%emt 0:08:45]} 15. Bc2 {[%emt 0:03:47]} Bb7 {[%emt 0:04:51]} 16. b3 {[%emt 0:01:56]} Nd7 {[%emt 0:05:00]} 17. Re1 {[%emt 0:25:20]} Rfe8 {[%emt 0:08:13]} 18. d4 {[%emt 0:21:31]} Nf8 {[%emt 0:07:06]} 19. dxc5 {[%emt 0:07:24]} Bxc5+ {[%emt 0:01:30]} 20. Be3 {[%emt 0:00:14]} Bxe3+ {[%emt 0:07:28]} 21. Qxe3 {[%emt 0:00:07]} f6 {[%emt 0:01:39]} 22. Nf3 {[%emt 0:01:02]} Bxf3 {[%emt 0:03:57]} 23. Qxf3 {[%emt 0:01:12]} bxc4 {[%emt 0:01:00]} 24. Rac1 {[%emt 0:02:21]} Qa7+ {[%emt 0:01:27]} 25. Kh1 {[%emt 0:00:08]} cxb3 {[%emt 0:02:28]} 26. Bxb3 {[%emt 0:00:05]} Kh8 {[%emt 0:02:16]} 27. Qc6 {[%emt 0:03:48]} e5 {[%emt 0:11:12]} 28. fxe5 {[%emt 0:09:51]} fxe5 {[%emt 0:05:24]} 29. Rf1 {[%emt 0:00:07]} Re7 {[%emt 0:04:32]} 30. Rc3 {[%emt 0:02:22]} Rd8 {[%emt 0:02:59]} 31. Rcf3 {[%emt 0:02:08]} Qb8 {[%emt 0:02:15]} 32. Qd6 {[%emt 0:00:44]} Ree8 {[%emt 0:01:23]} 33. Qxa6 {[%emt 0:00:17]} e4 {[%emt 0:01:45]} 34. Rh3 {[%emt 0:02:00]} Qd6 {[%emt 0:04:30]} 35. Qe2 {[%emt 0:00:47]} h6 {[%emt 0:01:38]} 36. Qg4 {[%emt 0:02:05]} Re7 {[%emt 0:03:43]} 37. Rd1 {[%emt 0:00:27]} Qc7 {[%emt 0:01:38]} 38. Rxd8 {[%emt 0:00:18]} Qxd8 {[%emt 0:00:38]} 39. Rxh6+ {[%emt 0:00:06]} Nh7 {[%emt 0:00:31]} 40. Rxh7+ {[%emt 0:00:05]} Kxh7 {[%emt 0:00:12]} 41. Qh5# {[%emt 0:50:04]} 1-0

[Event "Caplin Hastings Masters 2023-24"]
[Site "Hastings"]
[Date "2024.01.04"]
[Round "8.28"]
[White "Walker, Martin G"]
[Black "Ahn, Sungmin"]
[Result "1-0"]
[ECO "B20"]
[WhiteElo "2090"]
[BlackElo "1836"]
[Annotator "NA RC"]
[PlyCount "87"]
[EventDate "2023.12.18"]
[EventType "swiss"]
[EventCountry "ENG"]
[SourceTitle "playchess.com"]
[Source "ChessBase"]
[SourceQuality "1"]
[TimeControl "40/6000+30:3000+30"]

1. e4 {[%emt 0:00:02]} c5 {[%emt 0:00:01]} 2. b4 {[%emt 0:00:06]} b6 {[%emt 0:09:54]} 3. bxc5 {[%emt 0:04:54]} bxc5 {[%emt 0:00:03]} 4. Bc4 {[%emt 0:00:06]} e6 {[%emt 0:02:26]} 5. Nc3 {[%emt 0:00:07]} d6 {[%emt 0:00:32]} 6. Nf3 {[%emt 0:02:40]} Nf6 {[%emt 0:00:05]} 7. Qe2 {[%emt 0:02:17]} Be7 {[%emt 0:00:36]} 8. e5 {[%emt 0:03:48]} dxe5 {[%emt 0:02:33]} 9. Nxe5 {[%emt 0:00:04]} a6 {[%emt 0:01:24]} 10. O-O {[%emt 0:06:07]} O-O {[%emt 0:00:41]} 11. Rb1 {[%emt 0:00:06]} Qc7 {[%emt 0:00:49]} 12. Na4 {[%emt 0:09:44]} Bd6 {[%emt 0:20:13]} 13. Nb6 {[%emt 0:00:23]} Ra7 {[%emt 0:00:30]} 14. Nxc8 {[%emt 0:03:06]} Qxc8 {[%emt 0:01:15]} 15. Bb2 {[%emt 0:01:46]} Nc6 {[%emt 0:02:13]} 16. Nxc6 {[%emt 0:14:11]} Qxc6 {[%emt 0:01:02]} 17. Rfe1 {[%emt 0:00:06]} Be7 {[%emt 0:09:04]} 18. Bc3 {[%emt 0:01:07]} Rd8 {[%emt 0:02:21]} 19. Ba5 {[%emt 0:00:43]} Rd6 {[%emt 0:05:21]} 20. Rb3 {[%emt 0:16:43]} Nd7 {[%emt 0:05:43]} 21. Bd3 {[%emt 0:05:50]} Bf6 {[%emt 0:06:10]} 22. Qe4 {[%emt 0:06:44]} Qxe4 {[%emt 0:00:10]} 23. Bxe4 {[%emt 0:00:52]} g6 {[%emt 0:02:42]} 24. d3 {[%emt 0:00:27]} Kg7 {[%emt 0:02:13]} 25. g3 {[%emt 0:00:09]} c4 {[%emt 0:09:47]} 26. dxc4 {[%emt 0:00:08]} Nc5 {[%emt 0:00:04]} 27. Bb6 {[%emt 0:00:38]} Nxb3 {[%emt 0:01:13]} 28. Bxa7 {[%emt 0:00:05]} Nd2 {[%emt 0:00:43]} 29. c5 {[%emt 0:06:16]} Rd4 {[%emt 0:01:36]} 30. Bg2 {[%emt 0:09:17]} Rc4 {[%emt 0:00:01]} 31. Rd1 {[%emt 0:00:12]} Rxc2 {[%emt 0:03:06]} 32. c6 {[%emt 0:00:57]} Be5 {[%emt 0:01:47]} 33. Bb6 {[%emt 0:12:57]} Nc4 {[%emt 0:00:03]} 34. Bd8 {[%emt 0:00:12]} Na3 {[%emt 0:01:15]} 35. f4 {[%emt 0:02:01]} Bf6 {[%emt 0:00:37]} 36. c7 {[%emt 0:02:16]} Nb5 {[%emt 0:00:48]} 37. Rd7 {[%emt 0:00:43]} Bd4+ {[%emt 0:01:05]} 38. Rxd4 {[%emt 0:00:48]} Nxd4 {[%emt 0:00:05]} 39. Bb7 {[%emt 0:00:06]} Rc1+ {[%emt 0:04:43]} 40. Kf2 {[%emt 0:00:09]} Rc2+ {[%emt 0:00:03]} 41. Ke1 {[%emt 0:01:42]} Rxh2 {[%emt 0:01:58]} 42. c8=Q {[%emt 0:00:10]} Nc2+ {[%emt 0:00:03]} 43. Kf1 {[%emt 0:00:54]} Ne3+ {[%emt 0:00:33]} 44. Kg1 {[%emt 0:00:07]} 1-0

[Event "Caplin Hastings Masters 2023-24"]
[Site "Hastings"]
[Date "2024.01.04"]
[Round "8.29"]
[White "Boggarapu, Kritan"]
[Black "Liu, Tianyi"]
[Result "0-1"]
[ECO "B48"]
[WhiteElo "1857"]
[BlackElo "2022"]
[Annotator "NA RC"]
[PlyCount "82"]
[EventDate "2023.12.18"]
[EventType "swiss"]
[EventCountry "ENG"]
[SourceTitle "playchess.com"]
[Source "ChessBase"]
[SourceQuality "1"]
[TimeControl "40/6000+30:3000+30"]

1. e4 {[%emt 0:00:06]} c5 {[%emt 0:00:04]} 2. Nf3 {[%emt 0:00:05]} e6 {[%emt 0:00:04]} 3. d4 {[%emt 0:00:04]} cxd4 {[%emt 0:00:03]} 4. Nxd4 {[%emt 0:00:06]} Nc6 {[%emt 0:00:03]} 5. Nc3 {[%emt 0:00:13]} Qc7 {[%emt 0:00:04]} 6. Be3 {[%emt 0:00:16]} a6 {[%emt 0:00:05]} 7. Qd2 {[%emt 0:03:46]} Nf6 {[%emt 0:00:08]} 8. f3 {[%emt 0:00:37]} Be7 {[%emt 0:00:22]} 9. O-O-O {[%emt 0:00:42]} b5 {[%emt 0:00:21]} 10. Kb1 {[%emt 0:04:13]} Nxd4 {[%emt 0:01:09]} 11. Bxd4 {[%emt 0:00:14]} Bb7 {[%emt 0:00:54]} 12. g4 {[%emt 0:04:45]} O-O {[%emt 0:00:33]} 13. h4 {[%emt 0:03:36]} e5 {[%emt 0:06:41]} 14. Bf2 {[%emt 0:15:24]} Rac8 {[%emt 0:19:38]} 15. g5 {[%emt 0:08:14]} b4 {[%emt 0:01:25]} 16. Na4 {[%emt 0:02:34]} Nxe4 {[%emt 0:03:03]} 17. fxe4 {[%emt 0:00:06]} Bxe4 {[%emt 0:00:03]} 18. Bd3 {[%emt 0:00:25]} Bxh1 {[%emt 0:00:18]} 19. Rxh1 {[%emt 0:00:07]} Qc6 {[%emt 0:00:29]} 20. Qe1 {[%emt 0:05:32]} Qxa4 {[%emt 0:04:38]} 21. Qe4 {[%emt 0:00:38]} g6 {[%emt 0:02:29]} 22. h5 {[%emt 0:03:30]} Qc6 {[%emt 0:01:27]} 23. Qh4 {[%emt 0:00:05]} Bxg5 {[%emt 0:00:14]} 24. Qh2 {[%emt 0:00:42]} h6 {[%emt 0:05:39]} 25. hxg6 {[%emt 0:02:34]} e4 {[%emt 0:02:53]} 26. Bh4 {[%emt 0:02:18]} exd3 {[%emt 0:00:42]} 27. c4 {[%emt 0:00:57]} Qxc4 {[%emt 0:00:54]} 28. Bxg5 {[%emt 0:00:20]} Qc2+ {[%emt 0:00:08]} 29. Qxc2 {[%emt 0:00:05]} dxc2+ {[%emt 0:00:07]} 30. Kc1 {[%emt 0:00:13]} hxg5 {[%emt 0:00:06]} 31. gxf7+ {[%emt 0:00:34]} Rxf7 {[%emt 0:00:09]} 32. Rg1 {[%emt 0:00:04]} Kf8 {[%emt 0:00:11]} 33. a3 {[%emt 0:00:23]} bxa3 {[%emt 0:00:06]} 34. bxa3 {[%emt 0:00:05]} g4 {[%emt 0:00:18]} 35. a4 {[%emt 0:00:06]} g3 {[%emt 0:00:08]} 36. a5 {[%emt 0:00:08]} g2 {[%emt 0:00:07]} 37. Kb2 {[%emt 0:00:39]} Rf1 {[%emt 0:00:40]} 38. Rxf1+ {[%emt 0:00:13]} gxf1=Q {[%emt 0:00:23]} 39. Ka2 {[%emt 0:00:05]} Qb1+ {[%emt 0:00:11]} 40. Ka3 {[%emt 0:00:06]} Rc3+ {[%emt 0:00:06]} 41. Ka4 {[%emt 0:50:06]} Qb3# {[%emt 0:50:05]} 0-1

[Event "Caplin Hastings Masters 2023-24"]
[Site "Hastings"]
[Date "2024.01.04"]
[Round "8.30"]
[White "Steiners, Emils"]
[Black "Byrn, Carsten"]
[Result "0-1"]
[ECO "D87"]
[WhiteElo "1993"]
[BlackElo "1823"]
[Annotator "NA RC"]
[PlyCount "48"]
[EventDate "2023.12.18"]
[EventType "swiss"]
[EventCountry "ENG"]
[SourceTitle "playchess.com"]
[Source "ChessBase"]
[SourceQuality "1"]
[TimeControl "40/6000+30:3000+30"]

1. d4 {[%emt 0:00:02]} Nf6 {[%emt 0:00:10]} 2. c4 {[%emt 0:00:03]} g6 {[%emt 0:00:10]} 3. Nc3 {[%emt 0:00:04]} d5 {[%emt 0:00:02]} 4. cxd5 {[%emt 0:00:05]} Nxd5 {[%emt 0:00:06]} 5. e4 {[%emt 0:00:04]} Nxc3 {[%emt 0:00:23]} 6. bxc3 {[%emt 0:00:03]} Bg7 {[%emt 0:00:09]} 7. Bc4 {[%emt 0:00:03]} O-O {[%emt 0:00:26]} 8. Ne2 {[%emt 0:01:31]} c5 {[%emt 0:00:10]} 9. O-O {[%emt 0:00:09]} Nc6 {[%emt 0:00:23]} 10. Be3 {[%emt 0:00:02]} e6 {[%emt 0:00:33]} 11. Qd2 {[%emt 0:02:45]} Qa5 {[%emt 0:00:57]} 12. Rfd1 {[%emt 0:09:01]} Rd8 {[%emt 0:01:11]} 13. Rac1 {[%emt 0:05:43]} b6 {[%emt 0:03:54]} 14. Qb2 {[%emt 0:07:22]} cxd4 {[%emt 0:00:56]} 15. cxd4 {[%emt 0:02:21]} Bb7 {[%emt 0:00:14]} 16. Bd2 {[%emt 0:14:10]} Qh5 {[%emt 0:00:52]} 17. Bc3 {[%emt 0:08:12]} Rac8 {[%emt 0:04:28]} 18. Nf4 {[%emt 0:12:50]} Qg5 {[%emt 0:08:04]} 19. g3 {[%emt 0:09:32]} Na5 {[%emt 0:07:58]} 20. Bxa5 {[%emt 0:09:45]} Qxa5 {[%emt 0:00:31]} 21. e5 {[%emt 0:05:12]} Bh6 {[%emt 0:01:34]} 22. Rc2 {[%emt 0:15:58]} Bxf4 {[%emt 0:01:11]} 23. gxf4 {[%emt 0:00:07]} Rxc4 {[%emt 0:00:38]} 24. Rxc4 {[%emt 0:02:30]} Qd5 {[%emt 0:00:19]} 0-1

[Event "Caplin Hastings Masters 2023-24"]
[Site "Hastings"]
[Date "2024.01.04"]
[Round "8.31"]
[White "Nainika, Gupta"]
[Black "Banerjee, Supratit"]
[Result "0-1"]
[ECO "A05"]
[WhiteElo "1543"]
[BlackElo "1974"]
[Annotator "NA RC"]
[PlyCount "68"]
[EventDate "2023.12.18"]
[EventType "swiss"]
[EventCountry "ENG"]
[SourceTitle "playchess.com"]
[Source "ChessBase"]
[SourceQuality "1"]
[TimeControl "40/6000+30:3000+30"]

1. e4 {[%emt 0:00:08]} e6 {[%emt 0:00:16]} 2. d3 {[%emt 0:00:18]} d5 {[%emt 0:00:19]} 3. Qe2 {[%emt 0:00:22]} Nf6 {[%emt 0:00:23]} 4. Nf3 {[%emt 0:00:29]} Be7 {[%emt 0:01:29]} 5. g3 {[%emt 0:00:52]} O-O {[%emt 0:02:11]} 6. Bg2 {[%emt 0:00:47]} c5 {[%emt 0:02:15]} 7. O-O {[%emt 0:01:10]} Nc6 {[%emt 0:01:22]} 8. c3 {[%emt 0:00:31]} b5 {[%emt 0:03:25]} 9. Nbd2 {[%emt 0:02:54]} Bb7 {[%emt 0:03:01]} 10. Rd1 {[%emt 0:03:40]} Re8 {[%emt 0:01:36]} 11. a4 {[%emt 0:03:46]} b4 {[%emt 0:06:13]} 12. Nb3 {[%emt 0:05:56]} Bf8 {[%emt 0:08:54]} 13. Be3 {[%emt 0:07:47]} Na5 {[%emt 0:16:49]} 14. Nxa5 {[%emt 0:10:05]} Qxa5 {[%emt 0:00:37]} 15. e5 {[%emt 0:02:01]} Nd7 {[%emt 0:00:49]} 16. Bd2 {[%emt 0:00:51]} Rac8 {[%emt 0:01:03]} 17. c4 {[%emt 0:03:37]} Qc7 {[%emt 0:02:15]} 18. Re1 {[%emt 0:02:04]} Rcd8 {[%emt 0:02:21]} 19. Bg5 {[%emt 0:04:32]} Be7 {[%emt 0:03:23]} 20. Rad1 {[%emt 0:02:28]} Bxg5 {[%emt 0:04:50]} 21. Nxg5 {[%emt 0:00:28]} h6 {[%emt 0:00:16]} 22. Nh3 {[%emt 0:02:38]} dxc4 {[%emt 0:09:21]} 23. dxc4 {[%emt 0:03:16]} Bxg2 {[%emt 0:00:20]} 24. Kxg2 {[%emt 0:00:05]} Qc6+ {[%emt 0:00:07]} 25. Qe4 {[%emt 0:00:56]} Nxe5 {[%emt 0:00:32]} 26. Qxc6 {[%emt 0:02:17]} Nxc6 {[%emt 0:00:31]} 27. Nf4 {[%emt 0:02:17]} Na5 {[%emt 0:03:08]} 28. Nd3 {[%emt 0:03:56]} Rc8 {[%emt 0:04:50]} 29. Rc1 {[%emt 0:02:25]} Red8 {[%emt 0:01:08]} 30. Re3 {[%emt 0:01:03]} Rd4 {[%emt 0:00:09]} 31. Ne5 {[%emt 0:03:59]} f6 {[%emt 0:00:56]} 32. Nf3 {[%emt 0:02:44]} Rxc4 {[%emt 0:00:10]} 33. Rxc4 {[%emt 0:01:37]} Nxc4 {[%emt 0:00:05]} 34. Re2 {[%emt 0:04:01]} e5 {[%emt 0:00:54]} 0-1

[Event "Caplin Hastings Masters 2023-24"]
[Site "Hastings"]
[Date "2024.01.04"]
[Round "8.32"]
[White "Seo, Juwon"]
[Black "Sugden, John N"]
[Result "1/2-1/2"]
[ECO "B48"]
[WhiteElo "1405"]
[BlackElo "1968"]
[Annotator "NA RC"]
[PlyCount "73"]
[EventDate "2023.12.18"]
[EventType "swiss"]
[EventCountry "ENG"]
[SourceTitle "playchess.com"]
[Source "ChessBase"]
[SourceQuality "1"]
[TimeControl "40/6000+30:3000+30"]

1. e4 {[%emt 0:00:04]} c5 {[%emt 0:00:27]} 2. Nf3 {[%emt 0:00:59]} e6 {[%emt 0:00:17]} 3. d4 {[%emt 0:00:19]} cxd4 {[%emt 0:00:12]} 4. Nxd4 {[%emt 0:00:09]} a6 {[%emt 0:00:31]} 5. Nc3 {[%emt 0:00:50]} b5 {[%emt 0:00:30]} 6. Bd3 {[%emt 0:02:35]} Bb7 {[%emt 0:00:30]} 7. O-O {[%emt 0:01:15]} Qc7 {[%emt 0:00:24]} 8. Be3 {[%emt 0:02:02]} Nf6 {[%emt 0:05:46]} 9. a3 {[%emt 0:02:39]} Nc6 {[%emt 0:10:30]} 10. Kh1 {[%emt 0:03:03]} Ne5 {[%emt 0:09:01]} 11. f4 {[%emt 0:04:12]} Nc4 {[%emt 0:03:37]} 12. Bxc4 {[%emt 0:01:23]} Qxc4 {[%emt 0:00:13]} 13. e5 {[%emt 0:02:26]} Nd5 {[%emt 0:09:04]} 14. Nxd5 {[%emt 0:01:48]} Qxd5 {[%emt 0:00:21]} 15. Rf2 {[%emt 0:01:14]} Be7 {[%emt 0:04:26]} 16. Qf3 {[%emt 0:03:11]} Qxf3 {[%emt 0:02:06]} 17. Nxf3 {[%emt 0:00:12]} O-O {[%emt 0:01:20]} 18. Rd1 {[%emt 0:00:47]} Bd5 {[%emt 0:02:27]} 19. Rfd2 {[%emt 0:01:35]} Rfc8 {[%emt 0:07:34]} 20. Nd4 {[%emt 0:02:06]} f6 {[%emt 0:15:16]} 21. Nf5 {[%emt 0:02:30]} Bf8 {[%emt 0:04:09]} 22. exf6 {[%emt 0:05:54]} gxf6 {[%emt 0:00:20]} 23. Ng3 {[%emt 0:00:39]} Bh6 {[%emt 0:04:23]} 24. c3 {[%emt 0:03:01]} Kf7 {[%emt 0:02:01]} 25. Re1 {[%emt 0:02:24]} Rc4 {[%emt 0:03:37]} 26. f5 {[%emt 0:02:49]} Bxe3 {[%emt 0:00:31]} 27. Rxe3 {[%emt 0:00:42]} Rf4 {[%emt 0:02:58]} 28. Re1 {[%emt 0:02:00]} Rc8 {[%emt 0:02:02]} 29. fxe6+ {[%emt 0:02:52]} dxe6 {[%emt 0:00:16]} 30. Kg1 {[%emt 0:01:56]} Rc7 {[%emt 0:05:10]} 31. Nf1 {[%emt 0:03:10]} Re4 {[%emt 0:02:52]} 32. Rxe4 {[%emt 0:00:33]} Bxe4 {[%emt 0:00:07]} 33. Ne3 {[%emt 0:00:33]} Ke7 {[%emt 0:01:45]} 34. Ng4 {[%emt 0:00:58]} Bf5 {[%emt 0:01:03]} 35. Ne3 {[%emt 0:01:50]} Be4 {[%emt 0:01:32]} 36. Ng4 {[%emt 0:00:18]} Bf5 {[%emt 0:02:24]} 37. Ne3 {[%emt 0:00:10]} 1/2-1/2

[Event "Caplin Hastings Masters 2023-24"]
[Site "Hastings"]
[Date "2024.01.04"]
[Round "8.33"]
[White "Honey, Luke Anthony"]
[Black "Han, Qixiang"]
[Result "1-0"]
[ECO "B76"]
[WhiteElo "1907"]
[BlackElo "1711"]
[Annotator "NA RC"]
[PlyCount "101"]
[EventDate "2023.12.18"]
[EventType "swiss"]
[EventCountry "ENG"]
[SourceTitle "playchess.com"]
[Source "ChessBase"]
[SourceQuality "1"]
[TimeControl "40/6000+30:3000+30"]

1. e4 {[%emt 0:00:05]} c5 {[%emt 0:00:03]} 2. Nf3 {[%emt 0:00:06]} d6 {[%emt 0:00:02]} 3. d4 {[%emt 0:00:05]} cxd4 {[%emt 0:00:03]} 4. Nxd4 {[%emt 0:00:05]} Nf6 {[%emt 0:00:02]} 5. Nc3 {[%emt 0:00:05]} g6 {[%emt 0:00:04]} 6. Be3 {[%emt 0:00:05]} Bg7 {[%emt 0:00:03]} 7. f3 {[%emt 0:00:05]} O-O {[%emt 0:00:03]} 8. Qd2 {[%emt 0:00:05]} Nc6 {[%emt 0:00:03]} 9. O-O-O {[%emt 0:00:06]} d5 {[%emt 0:00:03]} 10. Kb1 {[%emt 0:00:05]} Nxd4 {[%emt 0:00:04]} 11. e5 {[%emt 0:00:07]} Nf5 {[%emt 0:00:04]} 12. exf6 {[%emt 0:00:07]} exf6 {[%emt 0:00:01]} 13. Bc5 {[%emt 0:00:18]} d4 {[%emt 0:00:22]} 14. Bxf8 {[%emt 0:00:09]} Qxf8 {[%emt 0:00:02]} 15. Nb5 {[%emt 0:00:11]} Ne3 {[%emt 0:00:11]} 16. Re1 {[%emt 0:00:11]} f5 {[%emt 0:00:07]} 17. f4 {[%emt 0:00:07]} Qc5 {[%emt 0:06:41]} 18. c3 {[%emt 0:00:09]} Nxf1 {[%emt 0:00:46]} 19. Re8+ {[%emt 0:00:07]} Bf8 {[%emt 0:00:07]} 20. Qxd4 {[%emt 0:00:15]} Qxd4 {[%emt 0:19:08]} 21. cxd4 {[%emt 0:04:57]} Bd7 {[%emt 0:03:01]} 22. Rxa8 {[%emt 0:00:14]} Bxb5 {[%emt 0:00:02]} 23. Rxa7 {[%emt 0:06:10]} Bd3+ {[%emt 0:04:57]} 24. Kc1 {[%emt 0:20:56]} b5 {[%emt 0:03:37]} 25. Kd1 {[%emt 0:14:27]} Bc4 {[%emt 0:10:07]} 26. b3 {[%emt 0:01:26]} Bd3 {[%emt 0:00:47]} 27. Ra8 {[%emt 0:00:45]} Kg7 {[%emt 0:07:11]} 28. Rxf8 {[%emt 0:13:46]} Kxf8 {[%emt 0:00:55]} 29. Ke1 {[%emt 0:00:23]} Ne3 {[%emt 0:00:10]} 30. Kd2 {[%emt 0:01:02]} Ng4 {[%emt 0:00:39]} 31. Kxd3 {[%emt 0:04:35]} Nf2+ {[%emt 0:00:38]} 32. Ke2 {[%emt 0:00:11]} Nxh1 {[%emt 0:00:13]} 33. a4 {[%emt 0:00:06]} bxa4 {[%emt 0:01:07]} 34. bxa4 {[%emt 0:00:06]} Ke7 {[%emt 0:00:13]} 35. a5 {[%emt 0:00:06]} Kd7 {[%emt 0:00:06]} 36. a6 {[%emt 0:00:08]} Kc7 {[%emt 0:00:02]} 37. d5 {[%emt 0:00:07]} Kd6 {[%emt 0:00:21]} 38. a7 {[%emt 0:00:08]} Kxd5 {[%emt 0:00:02]} 39. a8=Q+ {[%emt 0:00:07]} Ke6 {[%emt 0:00:10]} 40. g3 {[%emt 0:00:22]} Nxg3+ {[%emt 0:00:09]} 41. hxg3 {[%emt 0:50:06]} Kf6 {[%emt 0:50:16]} 42. Qc6+ {[%emt 0:00:09]} Kg7 {[%emt 0:00:03]} 43. Ke3 {[%emt 0:00:10]} f6 {[%emt 0:00:13]} 44. Kd4 {[%emt 0:00:13]} g5 {[%emt 0:00:03]} 45. fxg5 {[%emt 0:00:10]} fxg5 {[%emt 0:00:04]} 46. Ke5 {[%emt 0:00:11]} h5 {[%emt 0:00:08]} 47. Kxf5 {[%emt 0:00:10]} h4 {[%emt 0:00:04]} 48. Qf6+ {[%emt 0:00:11]} Kh7 {[%emt 0:00:12]} 49. Qxg5 {[%emt 0:00:10]} hxg3 {[%emt 0:00:03]} 50. Kf6 {[%emt 0:00:11]} g2 {[%emt 0:00:03]} 51. Qg7# {[%emt 0:00:06]} 1-0